bitfinex-derivatives/quotes_BTCF0:USTF0_20250704
["timestamp","ask_amount","ask_price","bid_price","bid_amount"]
[1751589975968,0.01955085,109730.0,109720.0,3.19463629]
[1751589976169,0.2732915,109740.0,109730.0,0.1822036]
[1751589976365,0.2732915,109740.0,109730.0,1.44128514]
[1751589976774,0.2732915,109740.0,109730.0,1.49591892]
[1751589979370,0.2277433,109740.0,109730.0,1.49591892]
[1751589979570,0.1821958,109740.0,109730.0,1.49591892]
[1751589980077,1.5997384,109750.0,109740.0,0.182187]
[1751589980280,1.5997384,109750.0,109740.0,0.95566854]
[1751589980476,0.5885279,109750.0,109740.0,1.28566854]
[1751589980674,1.4158479,109750.0,109740.0,1.37956854]
[1751589981177,1.3703048,109750.0,109740.0,1.37956854]
[1751589981374,1.3713048,109750.0,109740.0,1.37956854]
[1751589983172,1.3713048,109750.0,109740.0,1.04956854]
[1751589983366,1.4032048,109750.0,109740.0,1.04956854]
[1751589983570,1.4336048,109750.0,109740.0,1.01636854]
[1751589983776,1.4665048,109750.0,109740.0,1.0255772]
[1751589984178,1.4665048,109750.0,109740.0,0.9648772]
[1751589985770,1.4665048,109750.0,109740.0,0.47139566]
[1751589986081,1.4665048,109750.0,109740.0,0.9648772]
[1751589992588,1.4032048,109750.0,109740.0,0.9648772]
[1751589992782,0.001,109750.0,109740.0,1.67771797]
[1751589992984,0.001,109750.0,109740.0,2.86571797]
[1751589994295,0.1831704,109750.0,109740.0,2.86571797]
[1751589994987,0.1831704,109750.0,109740.0,2.6189772]
[1751589996093,0.1831704,109750.0,109740.0,2.67361098]
[1751589996291,0.1831704,109750.0,109740.0,2.92035175]
[1751589997391,0.001,109750.0,109740.0,2.92035175]
[1751589998186,0.001,109750.0,109740.0,3.16905175]
[1751590002792,0.001,109750.0,109740.0,3.11441797]
[1751590003497,0.02314562,109750.0,109740.0,3.11441797]
[1751590012802,0.001,109750.0,109740.0,3.18707448]
[1751590014904,0.001,109750.0,109740.0,3.18102356]
[1751590025212,0.001,109750.0,109740.0,3.10836705]
[1751590025410,0.001,109750.0,109740.0,3.19949284]
[1751590045533,0.001,109750.0,109740.0,2.95251207]
[1751590045833,0.1831704,109750.0,109740.0,2.10721191]
[1751590046033,0.2769704,109750.0,109740.0,2.43721191]
[1751590047134,0.2769704,109750.0,109740.0,1.39025191]
[1751590047333,0.9067835,109750.0,109740.0,0.75940492]
[1751590047535,0.9067835,109750.0,109740.0,1.00614569]
[1751590047833,0.9067835,109750.0,109740.0,0.75940492]
[1751590048231,0.9067835,109750.0,109740.0,1.00614569]
[1751590048431,0.9067835,109750.0,109740.0,0.75744569]
[1751590049232,0.9067835,109750.0,109740.0,0.70287685]
[1751590049731,0.66004273,109750.0,109740.0,0.70279656]
[1751590051933,0.6377704,109750.0,109740.0,0.70279656]
[1751590052236,0.6377704,109750.0,109740.0,0.7573654]
[1751590052927,0.6599864,109750.0,109740.0,0.70279656]
[1751590056340,0.6599864,109750.0,109740.0,0.45613608]
[1751590056636,0.6599864,109750.0,109740.0,0.70279656]
[1751590062944,0.6377704,109750.0,109740.0,0.70279656]
[1751590063443,0.6377704,109750.0,109740.0,0.45613608]
[1751590063740,0.6377704,109750.0,109740.0,0.70279656]
[1751590070153,0.6377704,109750.0,109740.0,0.7573654]
[1751590071847,0.88440858,109750.0,109740.0,1.00398128]
[1751590072356,0.88440858,109750.0,109740.0,1.03428128]
[1751590074153,0.9066305,109750.0,109740.0,1.03428128]
[1751590074353,0.9066305,109750.0,109740.0,1.06538128]
[1751590074553,0.8450305,109750.0,109740.0,1.09728128]
[1751590074954,0.59839232,109750.0,109740.0,1.09728128]
[1751590077657,0.56619232,109750.0,109740.0,1.09728128]
[1751590080059,0.8128305,109750.0,109740.0,1.09728128]
[1751590080859,0.8128305,109750.0,109740.0,0.61005584]
[1751590081062,0.8128305,109750.0,109740.0,0.76339402]
[1751590081263,0.9048305,109750.0,109740.0,0.58120702]
[1751590082357,0.9048305,109750.0,109740.0,0.76339402]
[1751590086263,0.9048305,109750.0,109740.0,0.58120702]
[1751590087064,0.9048305,109750.0,109740.0,0.76339402]
[1751590089163,0.9048305,109750.0,109740.0,0.58120702]
[1751590089363,0.9048305,109750.0,109740.0,0.33456884]
[1751590089564,0.9048305,109750.0,109740.0,0.58120702]
[1751590090770,0.9048305,109750.0,109740.0,0.70882518]
[1751590091068,0.9048305,109750.0,109740.0,0.52663818]
[1751590093370,0.9048305,109750.0,109740.0,0.95546336]
[1751590093572,0.9048305,109750.0,109740.0,0.98596336]
[1751590093771,0.9048305,109750.0,109740.0,0.73932518]
[1751590093972,0.9048305,109750.0,109740.0,0.98596336]
[1751590094172,0.88260858,109750.0,109740.0,0.98596336]
[1751590094472,0.90483947,109750.0,109740.0,0.98596336]
[1751590095772,0.90483947,109750.0,109740.0,1.05076336]
[1751590099174,0.90483947,109750.0,109740.0,0.557487]
[1751590099381,0.90483947,109750.0,109740.0,0.80412518]
[1751590099872,0.59640129,109750.0,109740.0,1.05076336]
[1751590100077,0.56620129,109750.0,109740.0,1.05076336]
[1751590102176,0.566202,109750.0,109740.0,1.05076336]
[1751590102777,0.566202,109750.0,109740.0,1.1053322]
[1751590107978,0.5662027,109750.0,109740.0,1.1053322]
[1751590110184,0.2054027,109750.0,109740.0,1.1053322]
[1751590110383,0.5662027,109750.0,109740.0,1.1053322]
[1751590112885,0.81284088,109750.0,109740.0,1.1053322]
[1751590113086,0.81284088,109750.0,109740.0,0.85869402]
[1751590113585,0.84324088,109750.0,109740.0,0.67650702]
[1751590113782,0.84324088,109750.0,109740.0,0.42986884]
[1751590113980,0.90564088,109750.0,109740.0,0.64440702]
[1751590117384,0.90564088,109750.0,109740.0,0.77202518]
[1751590118385,0.90564088,109750.0,109740.0,0.58983818]
[1751590119390,0.54484088,109750.0,109740.0,0.58983818]
[1751590119685,0.90564088,109750.0,109740.0,0.58983818]
[1751590120888,0.90564088,109750.0,109740.0,0.77202518]
[1751590122091,0.90564088,109750.0,109740.0,0.82659402]
[1751590122290,0.90564088,109750.0,109740.0,0.57995584]
[1751590122592,0.90564088,109750.0,109740.0,0.82659402]
[1751590125590,0.90564088,109750.0,109740.0,0.64440702]
[1751590126092,0.90564088,109750.0,109740.0,0.82659402]
[1751590130200,0.90564088,109750.0,109740.0,0.57995584]
[1751590130507,0.182187,109740.0,109730.0,0.30120702]
[1751590130702,1.98161566,109740.0,109730.0,0.61120702]
[1751590131401,1.73497748,109740.0,109730.0,0.79341062]
[1751590131700,1.73497748,109740.0,109730.0,0.61120702]
[1751590133202,1.73497748,109740.0,109730.0,0.55663818]
[1751590135106,1.4883393,109740.0,109730.0,0.55663818]
[1751590135295,1.73497748,109740.0,109730.0,0.55663818]
[1751590135906,1.98161566,109740.0,109730.0,0.31]
[1751590137910,2.21225566,109740.0,109730.0,0.31]
[1751590138713,2.57305566,109740.0,109730.0,0.31]
[1751590141515,2.57305566,109740.0,109730.0,0.55663818]
[1751590142616,2.57305566,109740.0,109730.0,0.31]
[1751590148816,0.1822036,109730.0,109720.0,0.34063818]
[1751590149018,0.81187408,109730.0,109720.0,0.29]
[1751590149222,0.90737408,109730.0,109720.0,0.29]
[1751590149421,0.90737408,109730.0,109720.0,0.53663818]
[1751590149725,0.90737408,109730.0,109720.0,0.29]
[1751590150718,0.90737408,109730.0,109720.0,0.293]
[1751590152020,0.90737408,109730.0,109720.0,0.54163818]
[1751590152221,0.90737408,109730.0,109720.0,0.295]
[1751590152422,0.90737408,109730.0,109720.0,0.54163818]
[1751590158827,0.90737408,109730.0,109720.0,0.57163818]
[1751590160425,0.90737408,109730.0,109720.0,0.62620702]
[1751590162321,0.90737408,109730.0,109720.0,0.37956884]
[1751590163032,0.90737408,109730.0,109720.0,0.325]
[1751590164230,0.6607359,109730.0,109720.0,0.325]
[1751590164531,0.90737408,109730.0,109720.0,0.325]
[1751590165425,1.15401226,109730.0,109720.0,0.295]
[1751590165728,0.90737408,109730.0,109720.0,0.295]
[1751590166826,0.6607359,109730.0,109720.0,0.295]
[1751590167125,0.90737408,109730.0,109720.0,0.295]
[1751590168032,1.26817408,109730.0,109720.0,0.295]
[1751590179436,1.0215359,109730.0,109720.0,0.295]
[1751590179632,1.26817408,109730.0,109720.0,0.295]
[1751590186039,2.09533408,109730.0,109720.0,0.295]
[1751590186640,2.06473408,109730.0,109720.0,0.54163818]
[1751590186938,2.03293408,109730.0,109720.0,0.63583818]
[1751590191754,1.99983408,109730.0,109720.0,0.63583818]
[1751590192254,1.99983408,109730.0,109720.0,0.69040702]
[1751590192955,1.99983408,109730.0,109720.0,0.63583818]
[1751590195550,1.99975408,109730.0,109720.0,0.88247636]
[1751590195750,1.99975408,109730.0,109720.0,0.63583818]
[1751590195947,1.63895408,109730.0,109720.0,0.63583818]
[1751590198664,0.5652359,109730.0,109720.0,0.88247636]
[1751590198855,1.63895408,109730.0,109720.0,0.88247636]
[1751590199153,1.3923159,109730.0,109720.0,1.06469656]
[1751590199359,0.5652359,109730.0,109720.0,1.41469656]
[1751590199558,1.3923159,109730.0,109720.0,1.41469656]
[1751590199858,1.3923159,109730.0,109720.0,1.06469656]
[1751590202960,1.3923159,109730.0,109720.0,1.1192654]
[1751590203358,1.3923159,109730.0,109720.0,1.06469656]
[1751590203857,1.3923159,109730.0,109720.0,1.1192654]
[1751590208667,0.5652359,109730.0,109720.0,1.1192654]
[1751590208870,0.1822037,109730.0,109720.0,1.9767224]
[1751590209169,0.1822037,109730.0,109720.0,2.0222759]
[1751590209367,0.1822037,109730.0,109720.0,2.04043269]
[1751590211368,0.1822037,109730.0,109720.0,1.96770706]
[1751590212268,0.1822037,109730.0,109720.0,1.1144307]
[1751590212464,0.1822037,109730.0,109720.0,1.60770706]
[1751590216269,0.1822037,109730.0,109720.0,1.66225341]
[1751590217370,0.1822037,109730.0,109720.0,1.66225312]
[1751590218071,0.1822037,109730.0,109720.0,1.61669962]
[1751590219272,0.1822037,109730.0,109720.0,1.12342326]
[1751590219474,0.1822037,109730.0,109720.0,1.61669962]
[1751590219872,0.5430037,109730.0,109720.0,1.25589962]
[1751590223875,0.5430037,109730.0,109720.0,0.76262326]
[1751590224071,0.5430037,109730.0,109720.0,1.25589962]
[1751590225176,0.5430037,109730.0,109720.0,0.76262326]
[1751590225577,0.5430037,109730.0,109720.0,1.25589962]
[1751590231484,0.5430037,109730.0,109720.0,1.20135356]
[1751590232477,0.5430037,109730.0,109720.0,1.27407919]
[1751590232978,0.5650989,109730.0,109720.0,1.25595645]
[1751590241086,0.5650989,109730.0,109720.0,0.76268009]
[1751590241286,0.5650989,109730.0,109720.0,1.25595645]
[1751590242895,0.5650989,109730.0,109720.0,1.20135356]
[1751590243089,0.81173708,109730.0,109720.0,0.4772203]
[1751590243388,0.90853708,109730.0,109720.0,0.72385848]
[1751590243584,0.90853708,109730.0,109720.0,0.5962781]
[1751590244985,0.90853708,109730.0,109720.0,0.7784984]
[1751590245495,0.90853708,109730.0,109720.0,1.02513658]
[1751590246682,0.6618989,109730.0,109720.0,1.02513658]
[1751590246882,0.90853708,109730.0,109720.0,1.02513658]
[1751590249197,0.6618989,109730.0,109720.0,1.02513658]
[1751590249393,0.90853708,109730.0,109720.0,0.7784984]
[1751590249591,0.90853708,109730.0,109720.0,0.5962781]
[1751590251498,0.90853708,109730.0,109720.0,0.84291628]
[1751590252098,0.6618989,109730.0,109720.0,0.84291628]
[1751590252298,0.6618989,109730.0,109720.0,0.93991628]
[1751590253599,0.90853708,109730.0,109720.0,0.93991628]
[1751590253800,0.90853708,109730.0,109720.0,0.84291628]
[1751590253999,0.90853708,109730.0,109720.0,0.5962781]
[1751590256705,0.90853708,109730.0,109720.0,0.34963992]
[1751590256903,0.90853708,109730.0,109720.0,0.5962781]
[1751590258007,0.90853708,109730.0,109720.0,0.34963992]
[1751590258195,0.90853708,109730.0,109720.0,0.5962781]
[1751590260604,0.90853708,109730.0,109720.0,0.34963992]
[1751590260803,0.90853708,109730.0,109720.0,0.005]
[1751590261009,0.90853708,109730.0,109720.0,0.335]
[1751590262409,0.90853708,109730.0,109720.0,0.6362781]
[1751590262609,0.90853708,109730.0,109720.0,0.38963992]
[1751590263017,0.90853708,109730.0,109720.0,0.335]
[1751590267418,0.90853708,109730.0,109720.0,0.075]
[1751590270621,1.13961708,109730.0,109720.0,0.075]
[1751590270814,0.1822369,109710.0,109700.0,0.10582563]
[1751590271015,1.97915508,109710.0,109700.0,0.3531]
[1751590271213,2.09753413,109710.0,109700.0,0.32]
[1751590271419,1.91529723,109710.0,109690.0,0.83163818]
[1751590271624,0.82069168,109700.0,109690.0,0.375]
[1751590271821,0.84287073,109700.0,109690.0,0.375]
[1751590272029,0.84287073,109700.0,109690.0,0.62163818]
[1751590272234,0.83887073,109700.0,109690.0,0.62163818]
[1751590272916,0.81669168,109700.0,109690.0,0.62163818]
[1751590273315,0.89055692,109700.0,109690.0,0.62163818]
[1751590273520,0.81169168,109700.0,109690.0,0.62163818]
[1751590273720,1.11194647,109700.0,109690.0,0.378]
[1751590274020,1.11194647,109700.0,109690.0,0.3467]
[1751590274219,1.08952986,109700.0,109690.0,0.3537]
[1751590275429,0.84289168,109700.0,109690.0,0.3537]
[1751590275632,0.84289168,109700.0,109690.0,0.60033818]
[1751590276031,0.84289168,109700.0,109690.0,0.3537]
[1751590276233,0.84289168,109700.0,109690.0,0.60033818]
[1751590277830,0.84289168,109700.0,109690.0,0.56953818]
[1751590278030,0.91576833,109700.0,109690.0,0.56953818]
[1751590279528,1.16240651,109700.0,109690.0,0.56953818]
[1751590279729,1.16240651,109700.0,109690.0,0.53663818]
[1751590279928,0.91576833,109700.0,109690.0,0.53663818]
[1751590281531,0.66913015,109700.0,109690.0,0.53663818]
[1751590281736,0.91576833,109700.0,109690.0,0.53663818]
[1751590282033,0.91576833,109700.0,109690.0,0.59763818]
[1751590282230,0.85356833,109700.0,109690.0,0.59763818]
[1751590282434,0.87593914,109700.0,109690.0,0.59763818]
[1751590286634,0.85356833,109700.0,109690.0,0.59763818]
[1751590289736,0.85356833,109700.0,109690.0,0.63073818]
[1751590293440,0.85356833,109700.0,109690.0,0.59763818]
[1751590293642,0.85356833,109700.0,109690.0,0.63003818]
[1751590295747,1.68508833,109700.0,109690.0,0.81230828]
[1751590296140,1.43845015,109700.0,109690.0,0.81230828]
[1751590296644,1.68508833,109700.0,109690.0,0.81230828]
[1751590296945,1.68508833,109700.0,109690.0,0.77990828]
[1751590297148,1.68508833,109700.0,109690.0,0.81220828]
[1751590298147,1.70752194,109700.0,109690.0,0.81220828]
[1751590298947,1.68508833,109700.0,109690.0,0.81220828]
[1751590299250,1.70753066,109700.0,109690.0,0.86669262]
[1751590299450,1.46089248,109700.0,109690.0,0.86669262]
[1751590300046,1.70753066,109700.0,109690.0,0.86669262]
[1751590303858,1.70753066,109700.0,109690.0,0.68442252]
[1751590312869,1.70753066,109700.0,109690.0,0.43778434]
[1751590313076,1.70753066,109700.0,109690.0,0.68442252]
[1751590318374,1.34673066,109700.0,109690.0,0.68442252]
[1751590318671,1.70753066,109700.0,109690.0,0.68442252]
[1751590319273,1.34673066,109700.0,109690.0,0.68442252]
[1751590319472,1.74033066,109700.0,109690.0,0.68442252]
[1751590321274,1.49369248,109700.0,109690.0,0.68442252]
[1751590321470,1.74033066,109700.0,109690.0,0.68442252]
[1751590322673,1.74033066,109700.0,109690.0,0.62993818]
[1751590324971,1.77203066,109700.0,109690.0,0.62993818]
[1751590327171,1.41123066,109700.0,109690.0,0.62993818]
[1751590327377,1.77203066,109700.0,109690.0,0.62993818]
[1751590329074,1.52539248,109700.0,109690.0,0.62993818]
[1751590329271,1.77203066,109700.0,109690.0,0.81220828]
[1751590329576,1.77203066,109700.0,109690.0,0.62993818]
[1751590330277,1.77211299,109700.0,109690.0,0.62993818]
[1751590330777,1.77211299,109700.0,109690.0,0.81220828]
[1751590333282,1.77211299,109700.0,109690.0,0.62993818]
[1751590334477,1.74958833,109700.0,109690.0,0.62993818]
[1751590334679,1.77211314,109700.0,109690.0,0.62993818]
[1751590335076,1.80321314,109700.0,109690.0,0.62993818]
[1751590335484,1.44241314,109700.0,109690.0,0.62993818]
[1751590335783,1.80321314,109700.0,109690.0,0.62993818]
[1751590345491,1.55657496,109700.0,109690.0,0.62993818]
[1751590345692,1.80321314,109700.0,109690.0,0.62993818]
[1751590348098,1.55657496,109700.0,109690.0,0.62993818]
[1751590348298,1.80321314,109700.0,109690.0,0.62993818]
[1751590349501,1.55657496,109700.0,109690.0,0.62993818]
[1751590349798,1.80321314,109700.0,109690.0,0.62993818]
[1751590350804,0.97169314,109700.0,109690.0,0.62993818]
[1751590351099,1.80085314,109700.0,109690.0,0.81220828]
[1751590351901,1.80085314,109700.0,109690.0,0.62993818]
[1751590352201,1.80085314,109700.0,109690.0,0.81220828]
[1751590352694,1.80085314,109700.0,109690.0,0.86688365]
[1751590353499,1.55421496,109700.0,109690.0,0.86688365]
[1751590353700,1.80085314,109700.0,109690.0,0.86688365]
[1751590356100,1.55421496,109700.0,109690.0,0.86688365]
[1751590356304,1.80085314,109700.0,109690.0,0.86688365]
[1751590357099,1.80085314,109700.0,109690.0,0.68461355]
[1751590357501,1.55421496,109700.0,109690.0,0.68461355]
[1751590357801,1.80085314,109700.0,109690.0,0.86688365]
[1751590359100,1.80085314,109700.0,109690.0,0.68461355]
[1751590359401,1.80085314,109700.0,109690.0,0.86688365]
[1751590360002,1.80085314,109700.0,109690.0,0.62024547]
[1751590360309,1.80085314,109700.0,109690.0,0.86688365]
[1751590361505,1.55421496,109700.0,109690.0,0.86688365]
[1751590361703,1.80085314,109700.0,109690.0,0.86688365]
[1751590362603,1.44005314,109700.0,109690.0,0.86688365]
[1751590362905,1.80085314,109700.0,109690.0,0.86688365]
[1751590364507,1.55421496,109700.0,109690.0,0.86688365]
[1751590364706,1.80085314,109700.0,109690.0,0.86688365]
[1751590365904,1.55421496,109700.0,109690.0,0.68461355]
[1751590366107,1.80085314,109700.0,109690.0,0.68461355]
[1751590367409,1.55421496,109700.0,109690.0,0.86688365]
[1751590367708,1.80085314,109700.0,109690.0,0.86688365]
[1751590368711,1.55421496,109700.0,109690.0,0.86688365]
[1751590368905,1.80085314,109700.0,109690.0,0.86688365]
[1751590370210,1.55421496,109700.0,109690.0,0.86688365]
[1751590370716,1.80085314,109700.0,109690.0,0.86688365]
[1751590371219,1.44005314,109700.0,109690.0,0.86688365]
[1751590371716,1.19341496,109700.0,109690.0,0.86688365]
[1751590371920,1.44005314,109700.0,109690.0,0.86688365]
[1751590381227,0.61089314,109700.0,109690.0,0.86688365]
[1751590381421,1.43897314,109700.0,109690.0,0.86688365]
[1751590382725,1.43897314,109700.0,109690.0,0.81220828]
[1751590390232,0.36425496,109700.0,109690.0,0.81220828]
[1751590390433,1.09669496,109700.0,109690.0,0.81220828]
[1751590396235,1.07417015,109700.0,109690.0,0.81220828]
[1751590396735,1.09672285,109700.0,109690.0,0.81220828]
[1751590403943,1.45752285,109700.0,109690.0,0.81220828]
[1751590405942,1.48762285,109700.0,109690.0,0.81220828]
[1751590413340,1.48762285,109700.0,109690.0,1.36884646]
[1751590413341,0.1958062,109700.0,109690.0,1.36884646]
[1751590415348,0.1958062,109700.0,109690.0,0.8755701]
[1751590415550,0.1958062,109700.0,109690.0,1.36884646]
[1751590415750,0.1958062,109700.0,109690.0,1.12220828]
[1751590423046,0.1732535,109700.0,109690.0,1.12220828]
[1751590426653,0.1732535,109700.0,109690.0,1.36884646]
[1751590428751,0.5340535,109700.0,109690.0,1.36884646]
[1751590433458,0.1732535,109700.0,109690.0,1.36884646]
[1751590433666,0.5340535,109700.0,109690.0,1.36884646]
[1751590434965,0.55664416,109700.0,109690.0,1.36884646]
[1751590436564,0.44248234,109700.0,109690.0,0.29]
[1751590436766,1.11242052,109700.0,109690.0,0.29]
[1751590436962,1.97042052,109700.0,109690.0,0.01]
[1751590437167,1.97042052,109700.0,109690.0,0.31]
[1751590438964,2.15274052,109700.0,109690.0,0.01]
[1751590440861,2.15274052,109700.0,109690.0,0.08]
[1751590441379,2.15274052,109700.0,109690.0,0.01]
[1751590441673,1.97042052,109700.0,109690.0,0.01]
[1751590442674,1.97042052,109700.0,109690.0,0.3]
[1751590444774,0.1822864,109680.0,109670.0,0.26762446]
[1751590444974,1.61756458,109680.0,109670.0,0.33098628]
[1751590445172,1.73511737,109680.0,109670.0,0.31182357]
[1751590445471,1.71246458,109680.0,109670.0,0.31182357]
[1751590445672,1.71246458,109680.0,109670.0,0.55846175]
[1751590446777,1.71246458,109680.0,109670.0,0.56346175]
[1751590447577,1.72175474,109680.0,109670.0,0.56846175]
[1751590447978,1.72175474,109680.0,109670.0,0.32182357]
[1751590448170,1.72175474,109680.0,109670.0,0.56846175]
[1751590450576,1.71246458,109680.0,109670.0,0.56846175]
[1751590454576,1.73507792,109680.0,109670.0,0.56846175]
[1751590455382,2.3425161,109680.0,109670.0,0.32182357]
[1751590455982,2.5733561,109680.0,109670.0,0.32182357]
[1751590456987,2.5733561,109680.0,109670.0,0.31782357]
[1751590459986,2.5733561,109680.0,109670.0,0.56446175]
[1751590460983,2.5733561,109680.0,109670.0,0.55946175]
[1751590462687,2.5733561,109680.0,109670.0,0.31282357]
[1751590466497,0.182303,109670.0,109660.0,0.81403818]
[1751590466685,0.81235452,109670.0,109660.0,0.60403818]
[1751590466993,0.84455452,109670.0,109660.0,0.60403818]
[1751590469499,0.1823362,109650.0,109640.0,0.78977938]
[1751590469690,1.0102562,109650.0,109640.0,1.36741756]
[1751590469988,1.0092562,109650.0,109640.0,1.36741756]
[1751590470697,1.0092562,109650.0,109640.0,1.18807636]
[1751590470897,1.0092562,109650.0,109640.0,0.88907636]
[1751590471198,1.0092562,109650.0,109640.0,0.89207636]
[1751590471395,1.0092562,109650.0,109640.0,0.3988]
[1751590471594,1.25589438,109650.0,109640.0,0.64543818]
[1751590471800,1.6393231,109650.0,109640.0,0.64543818]
[1751590472001,1.6393231,109650.0,109640.0,0.3988]
[1751590472203,1.6393231,109650.0,109640.0,0.64543818]
[1751590472394,1.71058216,109650.0,109640.0,0.64543818]
[1751590472594,1.71952197,109650.0,109640.0,0.64543818]
[1751590473102,1.72969325,109650.0,109640.0,0.64543818]
[1751590473799,1.72969325,109650.0,109640.0,0.3988]
[1751590473800,1.47411526,109650.0,109640.0,0.3988]
[1751590475497,1.48338865,109650.0,109640.0,0.3988]
[1751590476002,1.48338865,109650.0,109640.0,0.3672]
[1751590476296,1.76260409,109650.0,109640.0,0.3672]
[1751590477805,1.76260409,109650.0,109640.0,0.306]
[1751590478210,0.1823528,109640.0,109630.0,0.06502423]
[1751590478507,0.6363528,109640.0,109630.0,0.32502423]
[1751590479204,0.88246824,109640.0,109630.0,0.32502423]
[1751590479506,0.90500202,109640.0,109630.0,0.32502423]
[1751590479906,0.90500202,109640.0,109630.0,0.32702423]
[1751590480099,0.90500202,109640.0,109630.0,0.34061091]
[1751590480498,0.90500202,109640.0,109630.0,0.01741091]
[1751590480702,0.90500202,109640.0,109630.0,0.32741091]
[1751590480903,0.90500202,109640.0,109630.0,0.01741091]
[1751590482400,0.90500202,109640.0,109630.0,0.01541091]
[1751590482599,0.90800202,109640.0,109630.0,0.01541091]
[1751590483000,0.91000202,109640.0,109630.0,0.01541091]
[1751590483205,0.66288658,109640.0,109630.0,0.01541091]
[1751590483403,0.91000202,109640.0,109630.0,0.01541091]
[1751590483914,0.66288658,109640.0,109630.0,0.01541091]
[1751590484106,0.91000202,109640.0,109630.0,0.01541091]
[1751590485404,0.66288658,109640.0,109630.0,0.01541091]
[1751590485613,0.91000202,109640.0,109630.0,0.01541091]
[1751590487008,0.91000202,109640.0,109630.0,0.00182423]
[1751590487213,0.91000202,109640.0,109630.0,0.01542164]
[1751590489818,0.66288658,109640.0,109630.0,0.01542164]
[1751590490012,0.91000202,109640.0,109630.0,0.01542164]
[1751590490217,0.91000202,109640.0,109630.0,0.00182423]
[1751590491514,0.182386,109620.0,109610.0,0.04964193]
[1751590491717,1.62594144,109620.0,109610.0,0.36964193]
[1751590491907,1.409026,109620.0,109610.0,0.36964193]
[1751590492318,1.409026,109620.0,109610.0,0.43274193]
[1751590492819,1.409026,109620.0,109610.0,0.43374193]
[1751590493119,1.409026,109620.0,109610.0,0.43474193]
[1751590494117,1.410026,109620.0,109610.0,0.43374193]
[1751590494317,1.410026,109620.0,109610.0,0.44760181]
[1751590494612,1.410026,109620.0,109610.0,0.44660254]
[1751590494819,1.410026,109620.0,109610.0,0.42846061]
[1751590497419,1.65714144,109620.0,109610.0,0.42846061]
[1751590497619,1.67962781,109620.0,109610.0,0.42846061]
[1751590498121,1.71212781,109620.0,109610.0,0.42846061]
[1751590499015,1.68964144,109620.0,109610.0,0.42846061]
[1751590499215,1.71212657,109620.0,109610.0,0.42846061]
[1751590500722,1.46501113,109620.0,109610.0,0.42846061]
[1751590503224,1.442526,109620.0,109610.0,0.42846061]
[1751590503724,1.68964144,109620.0,109610.0,0.42846061]
[1751590504324,1.68964144,109620.0,109610.0,0.42851943]
[1751590505525,1.71209536,109620.0,109610.0,0.42851943]
[1751590506121,2.07289536,109620.0,109610.0,0.42851943]
[1751590506424,2.05044144,109620.0,109610.0,0.42851943]
[1751590506824,2.07290125,109620.0,109610.0,0.42851943]
[1751590507025,2.05044144,109620.0,109610.0,0.42851943]
[1751590507420,2.05044144,109620.0,109610.0,0.02491943]
[1751590507618,2.56059688,109620.0,109610.0,0.02491943]
[1751590507822,0.1824193,109600.0,109590.0,0.0018249]
[1751590508019,1.62533474,109600.0,109590.0,0.1044249]
[1751590508322,1.68923474,109600.0,109590.0,0.3218249]
[1751590508525,1.74480082,109600.0,109590.0,0.0018249]
[1751590508725,2.10560082,109600.0,109590.0,0.0018249]
[1751590508930,0.42955134,109590.0,109580.0,0.08899571]
[1751590509122,0.87671742,109590.0,109580.0,0.37899571]
[1751590510528,0.87471742,109590.0,109580.0,0.29496989]
[1751590511029,0.7010862,109590.0,109580.0,0.29496989]
[1751590511517,0.7010862,109590.0,109580.0,0.32646989]
[1751590511721,1.5374862,109590.0,109580.0,0.35876989]
[1751590512233,0.7010862,109590.0,109580.0,0.35876989]
[1751590512729,1.5380062,109590.0,109580.0,0.35876989]
[1751590513233,1.51554012,109590.0,109580.0,0.35876989]
[1751590513529,0.67862012,109590.0,109580.0,0.35876989]
[1751590513734,0.61472012,109590.0,109580.0,0.60588533]
[1751590513934,1.45148012,109590.0,109580.0,0.60588533]
[1751590514232,1.45148012,109590.0,109580.0,0.35876989]
[1751590514433,1.45148012,109590.0,109580.0,0.60588533]
[1751590515034,1.44848012,109590.0,109580.0,0.35876989]
[1751590515633,1.44848012,109590.0,109580.0,0.35976989]
[1751590518139,1.69559556,109590.0,109580.0,0.35976989]
[1751590518334,0.61172012,109590.0,109580.0,0.60688533]
[1751590518637,1.44960012,109590.0,109580.0,0.60688533]
[1751590518836,1.44960012,109590.0,109580.0,0.78933793]
[1751590519136,1.44960012,109590.0,109580.0,0.60688533]
[1751590519635,1.44960012,109590.0,109580.0,0.35976989]
[1751590519842,1.44960012,109590.0,109580.0,0.60688533]
[1751590521036,1.44960012,109590.0,109580.0,0.35976989]
[1751590521936,1.69671556,109590.0,109580.0,0.35976989]
[1751590522139,1.51380012,109590.0,109580.0,0.29596989]
[1751590522335,1.76091556,109590.0,109580.0,0.29596989]
[1751590522736,1.51380012,109590.0,109580.0,0.29596989]
[1751590522937,1.76091556,109590.0,109580.0,0.29596989]
[1751590524332,1.51380012,109590.0,109580.0,0.29596989]
[1751590524832,1.51380012,109590.0,109580.0,0.36066989]
[1751590525356,1.51380012,109590.0,109580.0,0.60778533]
[1751590526247,1.51380012,109590.0,109580.0,0.36066989]
[1751590528356,1.53623602,109590.0,109580.0,0.36066989]
[1751590528556,1.78335146,109590.0,109580.0,0.36066989]
[1751590528751,1.53623602,109590.0,109580.0,0.36066989]
[1751590532257,1.78335146,109590.0,109580.0,0.1505255]
[1751590532462,1.78335146,109590.0,109580.0,0.0605255]
[1751590532962,1.78335146,109590.0,109580.0,0.00596989]
[1751590534460,1.78535146,109590.0,109580.0,0.00596989]
[1751590534858,1.78835146,109590.0,109580.0,0.00496989]
[1751590535250,2.0354669,109590.0,109580.0,9e-08]
[1751590535454,0.1824692,109570.0,109560.0,0.15065561]
[1751590535758,1.4069051,109570.0,109560.0,0.48065561]
[1751590536062,1.4392051,109570.0,109560.0,0.48065561]
[1751590536759,1.4709051,109570.0,109560.0,0.38455561]
[1751590537557,1.71802054,109570.0,109560.0,0.331]
[1751590540761,1.69558464,109570.0,109560.0,0.331]
[1751590541668,1.83150607,109570.0,109560.0,0.331]
[1751590541858,2.07862151,109570.0,109560.0,0.331]
[1751590542562,2.31230151,109570.0,109560.0,0.331]
[1751590542762,2.31230151,109570.0,109560.0,0.021]
[1751590543266,2.31230151,109570.0,109560.0,0.001]
[1751590543766,2.3213294,109570.0,109560.0,0.001]
[1751590544166,2.3213294,109570.0,109560.0,0.01458033]
[1751590544558,2.32131526,109570.0,109560.0,0.01458033]
[1751590545962,0.1824859,109560.0,109550.0,0.00182557]
[1751590546263,0.90542407,109560.0,109550.0,0.30182557]
[1751590547466,0.90542407,109560.0,109550.0,0.30482557]
[1751590548365,0.90542407,109560.0,109550.0,0.30682557]
[1751590551365,0.90542407,109560.0,109550.0,0.00682557]
[1751590552162,0.1825192,109540.0,109530.0,0.00896063]
[1751590552367,1.3888792,109540.0,109530.0,0.3964]
[1751590552970,1.3888792,109540.0,109530.0,0.40573666]